fUSD/lending_fUSD_20250115
["ID","MTS","AMOUNT","RATE_DAILY","PERIOD"]
[349046766,1736950242948,-500.0,0.00033698,7]
[349046768,1736950242962,-524.7,0.00033698,7]
[349046770,1736950242973,-500.0,0.00033698,7]
[349046772,1736950242983,-500.0,0.00033698,7]
[349046774,1736950242992,-500.0,0.00033698,7]
[349046776,1736950243002,-500.0,0.00033698,7]
[349046778,1736950243011,-500.0,0.00033787,7]
[349046780,1736950243020,-500.0,0.00033787,7]
[349046782,1736950243030,-500.0,0.00033787,7]
[349046784,1736950243039,-500.0,0.00033787,7]
[349046786,1736950243048,-500.0,0.00033787,7]
[349046788,1736950243059,-500.0,0.00033787,7]
[349046790,1736950243068,-709.64,0.00033871,7]
[349046792,1736950243078,-500.0,0.00033972,7]
[349046794,1736950243087,-500.0,0.00033972,7]
[349046796,1736950243097,-500.0,0.00033972,7]
[349046797,1736950243106,-472.66,0.00033972,7]
[349046798,1736950243115,-233.96765469,0.00033972,7]
[349046799,1736950243123,-379.87,0.00033972,7]
[349046800,1736950243132,-500.0,0.00033972,7]
[349046801,1736950243142,-500.0,0.00033972,7]
[349046802,1736950243151,-500.0,0.00033972,7]
[349046803,1736950243160,-500.0,0.00033972,7]
[349046804,1736950243169,-500.0,0.00033972,7]
[349046805,1736950243179,-500.0,0.00033972,7]
[349046806,1736950243187,-500.0,0.00033972,7]
[349046807,1736950243197,-393.35184641,0.00033972,7]
[349046808,1736950243208,-500.0,0.00033972,7]
[349046809,1736950243217,-319.6,0.00033972,7]
[349046810,1736950243226,-500.0,0.00034061,7]
[349046811,1736950243235,-500.0,0.00034061,7]
[349046812,1736950243244,-500.0,0.00034061,7]
[349046813,1736950243254,-500.0,0.00034061,7]
[349046814,1736950243264,-500.0,0.00034061,7]
[349046815,1736950243273,-158.27562113,0.00034122,2]
[349046816,1736950243283,-709.64,0.00034145,7]
[349046817,1736950243292,-500.0,0.00034246,7]
[349046818,1736950243302,-500.0,0.00034246,7]
[349046819,1736950243311,-500.0,0.00034246,7]
[349046821,1736950243320,-500.0,0.00034246,7]
[349046822,1736950243330,-500.0,0.00034246,7]
[349046824,1736950243339,-500.0,0.00034246,7]
[349046825,1736950243351,-500.0,0.00034246,7]
[349046826,1736950243365,-500.0,0.00034246,7]
[349046827,1736950243381,-214.96721148,0.00034246,7]
[349046828,1736950243393,-500.0,0.00034246,7]
[349046829,1736950243403,-500.0,0.00034246,7]
[349046830,1736950243413,-500.0,0.00034335,7]
[349046832,1736950243423,-500.0,0.00034335,7]
[349046833,1736950243433,-500.0,0.00034335,7]
[349046834,1736950243443,-355.39545852,0.00034335,7]
[349046835,1736950243454,-500.0,0.00034335,7]
[349046836,1736950243464,-3566.5082351,0.00034348,2]
[349046837,1736950243474,-709.64,0.00034419,7]
[349046838,1736950243484,-296.32,0.00034497,2]
[349046839,1736950243494,-500.0,0.0003452,7]
[349046840,1736950243504,-500.0,0.0003452,7]
[349046841,1736950243514,-500.0,0.0003452,7]
[349046842,1736950243523,-500.0,0.0003452,7]
[349046843,1736950243533,-500.0,0.0003452,7]
[349046844,1736950243543,-500.0,0.0003452,7]
[349046845,1736950243553,-500.0,0.0003452,7]
[349046846,1736950243562,-500.0,0.0003452,7]
[349046847,1736950243572,-500.0,0.0003452,7]
[349046848,1736950243582,-500.0,0.0003452,7]
[349046849,1736950243592,-500.0,0.00034609,7]
[349046850,1736950243602,-500.0,0.00034609,7]
[349046851,1736950243612,-500.0,0.00034609,7]
[349046852,1736950243622,-500.0,0.00034609,7]
[349046853,1736950243632,-709.64,0.00034693,7]
[349046854,1736950243642,-500.0,0.00034794,7]
[349046855,1736950243653,-333.6,0.00034794,7]
[349046856,1736950243663,-500.0,0.00034794,7]
[349046857,1736950243674,-455.56,0.00034794,7]
[349046858,1736950243684,-306.34764722,0.00034794,7]
[349046859,1736950243702,-500.0,0.00032876,7]
[349046860,1736950243714,-84.85235278,0.00034794,7]
[349046861,1736950243724,-378.34516722,0.00034794,7]
[349046862,1736950243736,-121.65483278,0.00034794,7]
[349046863,1736950243747,-177.16616722,0.00034794,7]
[349046864,1736950243760,-322.83383278,0.00034794,7]
[349046865,1736950243770,-77.50126095,0.00034794,7]
[349046866,1736950243830,-536.77,0.00032876,7]
[349046867,1736950243842,-500.0,0.00032876,7]
[349046868,1736950243853,-500.0,0.0003315,7]
[349046869,1736950243863,-500.0,0.0003315,7]
[349046870,1736950243873,-500.0,0.00033424,7]
[349046871,1736950243883,-500.0,0.00033424,7]
[349046872,1736950243893,-302.8,0.00033698,7]
[349046873,1736950243903,-500.0,0.00033698,7]
[349046874,1736950243913,-422.49873905,0.00034794,7]
[349046875,1736950243923,-500.0,0.00034794,7]
[349046876,1736950243933,-500.0,0.00034794,7]
[349046877,1736950243942,-500.0,0.00034883,7]
[349046878,1736950243951,-500.0,0.00034883,7]
[349046879,1736950243963,-500.0,0.00034883,7]
[349046880,1736950243974,-500.0,0.00034883,7]
[349046881,1736950243984,-709.64,0.00034967,7]
[349046882,1736950243993,-773.71647456,0.00035,120]
[349046883,1736950244003,-908.89,0.00035021,2]
[349046884,1736950244013,-158.0,0.00035068,5]
[349046885,1736950244023,-500.0,0.00035068,7]
[349046886,1736950244033,-545.0,0.00035068,7]
[349046887,1736950244043,-500.0,0.00035068,7]
[349046888,1736950244052,-500.0,0.00035068,7]
[349046889,1736950244062,-500.0,0.00035068,7]
[349046890,1736950244072,-500.0,0.00035068,7]
[349046891,1736950244081,-489.58,0.00035068,7]
[349046892,1736950244091,-500.0,0.00035156,7]
[349046893,1736950244100,-500.0,0.00035156,7]
[349046894,1736950244110,-709.64,0.00035241,7]
[349046895,1736950244260,-3000.0,0.000353,2]
[349046896,1736950244271,-500.0,0.00035342,7]
[349046897,1736950244281,-500.0,0.00035342,7]
[349046898,1736950244290,-590.25,0.00035342,7]
[349046899,1736950244299,-500.0,0.00035342,7]
[349046900,1736950244308,-500.0,0.00035342,7]
[349046901,1736950244318,-1701.57189107,0.00035422,7]
[349046902,1736950244327,-240.94124686,0.0003543,7]
[349046903,1736950244337,-500.0,0.0003543,7]
[349046904,1736950244346,-709.64,0.00035515,7]
[349046905,1736950244355,-300.15,0.00035616,7]
[349046906,1736950244364,-413.91617266,0.00035616,7]
[349046907,1736950244374,-339.06405163,0.00035616,7]
[349046908,1736950244387,-160.93594837,0.00035616,7]
[349046909,1736950244397,-500.0,0.00035616,7]
[349046910,1736950244407,-3566.5082351,0.00035693,2]
[349046911,1736950244418,-593.06634963,0.00035704,7]
[349046912,1736950244428,-709.64,0.00035789,7]
[349046913,1736950244438,-500.0,0.0003589,7]
[349046914,1736950244448,-500.0,0.0003589,7]
[349046915,1736950244460,-428.22,0.00035973,120]
[349046916,1736950244470,-500.0,0.00036027,120]
[349046917,1736950244480,-709.64,0.00036063,7]
[349046918,1736950244491,-158.27562113,0.00036067,2]
[349046919,1736950244502,-500.0,0.00036164,7]
[349046920,1736950244512,-500.0,0.00036164,7]
[349046921,1736950244521,-709.64,0.00036337,7]
[349046922,1736950244531,-500.0,0.00036438,7]
[349046923,1736950244541,-500.0,0.00036438,7]
[349046924,1736950244551,-709.64,0.00036611,7]
[349046925,1736950244566,-500.0,0.00036712,7]
[349046926,1736950244576,-500.0,0.00036712,7]
[349046927,1736950244586,-296.32,0.00036761,2]
[349046928,1736950244598,-339.37,0.00036842,2]
[349046929,1736950244608,-709.64,0.00036885,7]
[349046930,1736950244618,-400.0,0.000369,13]
[349046931,1736950244628,-500.0,0.00036964,60]
[349046932,1736950244638,-500.0,0.00036986,7]
[349046933,1736950244648,-500.0,0.00036986,7]
[349046934,1736950244658,-11500.0,0.00037,117]
[349046935,1736950244668,-3566.5082351,0.00037038,2]
[349046936,1736950244682,-709.64,0.00037159,7]
[349046937,1736950244692,-500.0,0.0003726,7]
[349046938,1736950244702,-500.0,0.0003726,7]
[349046939,1736950244714,-709.64,0.00037433,7]
[349046940,1736950244723,-420.76820525,0.00037534,7]
[349046941,1736950244733,-544.6905885,0.00037534,7]
[349046942,1736950244743,-8008.8383,0.00037548,2]
[349046943,1736950244755,-608.38408132,0.00037707,7]
[349046944,1736950244846,-101.25591868,0.00037707,7]
[349046945,1736950244856,-184.81407832,0.00037981,7]
[349046946,1736950244868,-524.82592168,0.00037981,7]
[349046947,1736950244877,-158.27562113,0.00038011,2]
[349046948,1736950244887,-3000.0,0.000381,2]
[349046949,1736950244896,-709.64,0.00038255,7]
[349046950,1736950244906,-999.0,0.00038328,120]
[349046951,1736950244916,-999.0,0.00038328,120]
[349046952,1736950244926,-999.0,0.00038328,120]
[349046953,1736950244936,-999.0,0.00038328,120]
[349046954,1736950244946,-999.0,0.00038328,120]
[349046955,1736950244957,-522.35845719,0.00038328,120]
[349046960,1736950245949,-500.0,0.00032876,7]
[349046961,1736950245960,-465.48,0.0003315,7]
[349046962,1736950245973,-311.49890554,0.00033972,7]
[349046963,1736950245983,-153.26403446,0.00038328,120]
[349046964,1736950246079,-323.37750835,0.00038328,120]
[349046965,1736950246090,-999.0,0.00038328,120]
[349046966,1736950246100,-999.0,0.00038328,120]
[349046967,1736950246109,-999.0,0.00038328,120]
[349046968,1736950246119,-1009.0,0.00038328,120]
[349046969,1736950246128,-150.0,0.00038328,7]
[349046970,1736950246138,-1000.0,0.00038356,120]
[349046971,1736950246148,-1000.0,0.00038356,120]
[349046972,1736950246158,-1000.0,0.00038356,120]
[349046973,1736950246168,-1000.0,0.00038356,120]
[349046974,1736950246178,-1000.0,0.00038356,120]
[349046975,1736950246190,-3566.5082351,0.00038383,2]
[349046976,1736950246200,-709.64,0.00038529,7]
[349046977,1736950246212,-534.79340655,0.00038803,7]
[349046978,1736950246224,-174.84659345,0.00038803,7]
[349046979,1736950246234,-10431.76881917,0.00038907,2]
[349046980,1736950246244,-1335.87545164,0.00038909,117]
[349046981,1736950246257,-342.76616965,0.00038909,117]
[349046982,1736950246270,-828.96715117,0.00038909,117]
[349046983,1736950246283,-10143.49122754,0.00038909,117]
[349046984,1736950246293,-709.64,0.00039077,7]
[349046985,1736950246303,-7249.6881,0.00039193,2]
[349046986,1736950246313,-709.74,0.00039351,7]
[349046987,1736950246323,-523.352479,0.00039675,120]
[349046988,1736950246332,-3566.5082351,0.00039728,2]
[349046989,1736950246342,-151.0132682,0.00039753,4]
[349046990,1736950246352,-14921.7,0.000398,120]
[349046991,1736950246363,-15122.75,0.000398,120]
[349046992,1736950246373,-420.29,0.000398,120]
[349046993,1736950246383,-15217.76,0.000398,120]
[349046994,1736950246394,-467.31895436,0.000398,120]
[349046995,1736950246403,-15078.16,0.000398,120]
[349046996,1736950246413,-9022.40386685,0.000398,120]
[349046997,1736950246423,-158.27562113,0.00039956,2]
[349046998,1736950246434,-9128.73417445,0.00039998,120]
[349046999,1736950246444,-8698.51779462,0.00039998,120]
[349047000,1736950246454,-1158.0,0.0004,120]
[349047001,1736950246469,-228.09,0.0004,30]
[349047002,1736950246479,-100000.0,0.0004,120]
[349047003,1736950246490,-300000.0,0.0004,120]
[349047004,1736950246500,-300000.0,0.0004,30]
[349047005,1736950246510,-300000.0,0.0004,60]
[349047006,1736950246520,-4700.0,0.0004,120]
[349047007,1736950246529,-3000.0,0.0004016,3]
[349047008,1736950246539,-455.95,0.000403,120]
[349047009,1736950246548,-563.77135051,0.000403,120]
[349047010,1736950246558,-166.50549518,0.0004037,2]
[349047012,1736950246568,-1701.57189107,0.00040374,12]
[349047013,1736950246578,-6149.45087271,0.000404,2]
[349047014,1736950246589,-428.22,0.0004047,120]
[349047015,1736950246599,-2941.44577275,0.00040669,14]
[349047016,1736950246609,-2941.44577275,0.0004067,14]
[349047017,1736950246620,-2941.44577275,0.00040683,14]
[349047018,1736950246630,-174.71650596,0.000407,14]
[349047019,1736950246640,-2941.44577275,0.00040754,14]
[349047020,1736950246650,-2941.44577275,0.00040755,14]
[349047021,1736950246660,-2941.44577275,0.00040758,14]
[349047022,1736950246671,-5545.4468,0.0004077,3]
[349047023,1736950246685,-1581.91813599,0.000408,30]
[349047024,1736950246752,-350.06370012,0.000408,30]
[349047025,1736950246764,-782.04282178,0.000408,30]
[349047026,1736950246776,-895.38335361,0.000408,30]
[349047027,1736950246786,-24424.508352,0.000408,30]
[349047028,1736950246795,-24424.508352,0.000408,30]
[349047029,1736950246805,-24424.508352,0.000408,30]
[349047030,1736950246815,-24424.508352,0.000408,30]
[349047031,1736950246826,-24424.508352,0.000408,30]
[349047032,1736950246836,-24424.508352,0.000408,30]
[349047033,1736950246846,-24424.508352,0.000408,30]
[349047034,1736950246856,-24424.508352,0.000408,30]
[349047035,1736950246866,-1906.5498303,0.000408,30]
[349047036,1736950246878,-751.46265066,0.000408,30]
[349047037,1736950246890,-3897.63157244,0.000408,30]
[349047040,1736951137347,260.78,8e-05,2]
[349047046,1736951156224,2024.9631996,6.94e-05,2]
[349047047,1736951168917,1322.99665724,8e-05,2]
[349047064,1736951390137,1204.76,0.00016665,120]
[349047101,1736951432052,-989.66,9e-05,2]
[349047107,1736951432084,-893.01898074,9e-05,2]
[349047109,1736951432096,-639.79941089,9.999e-05,2]
[349047111,1736951432105,-300.0,9.999e-05,2]
[349047113,1736951432114,-28240.28439033,0.0001,2]
[349047115,1736951432125,-4321.02067509,0.0001,2]
[349047117,1736951432136,-28394.73730386,0.0001,2]
[349047119,1736951432146,-152.56,0.00010137,2]
[349047121,1736951432155,-554.67015028,0.000109,2]
[349047123,1736951432166,-420.0,0.00010999,2]
[349047125,1736951432175,-15579.6101812,0.00011,2]
[349047127,1736951432186,-2682.38476727,0.00011,2]
[349047129,1736951432197,-15096.77737827,0.00011,2]
[349047132,1736951432208,-4903.23013846,0.00011,2]
[349047134,1736951432219,-949.83135,0.00011,2]
[349047137,1736951432242,-67786.37194668,0.00011,2]
[349047139,1736951432252,-5096.647325,0.00011,2]
[349047141,1736951432261,-15107.38295554,0.00011,2]
[349047143,1736951432271,-550.0,0.00011,2]
[349047146,1736951432280,-6868.57533065,0.00011,2]
[349047147,1736951432289,-250.0,0.00011988,2]
[349047149,1736951432299,-24956.11702163,0.00012,2]
[349047152,1736951432308,-32377.25370544,0.00012,2]
[349047154,1736951432318,-300.0,0.00012,2]
[349047156,1736951432327,-1000.0,0.00012,12]
[349047158,1736951432337,-2065.56803989,0.00012229,2]
[349047159,1736951432350,-226.08289362,0.00012229,2]
[349047160,1736951432359,-2744.25102264,0.00012229,2]
[349047162,1736951432375,-290.33897048,0.0001229,2]
[349047164,1736951432384,-290.33897048,0.0001229,2]
[349047166,1736951432394,-12679.14964175,0.000123,4]
[349047168,1736951432404,-224439.6559886,0.000123,2]
[349047170,1736951432417,-70872.69249349,0.000123,2]
[349047172,1736951432428,-50227.15094553,0.000123,2]
[349047175,1736951432444,-315.56130515,0.000123,2]
[349047177,1736951432456,-1038.07543509,0.000123,2]
[349047180,1736951432468,-99072.40780001,0.000123,2]
[349047182,1736951432479,-5774.69124453,0.000123,2]
[349047736,1736951437993,-5547.74016914,0.000123,2]
[349047738,1736951438005,-1669.89751931,0.000123,2]
[349047740,1736951438016,-662.186392,0.000123,2]
[349047741,1736951438027,-576.295994,0.000123,2]
[349047743,1736951438039,-11873.82782395,0.000123,2]
[349047745,1736951438050,-59837.11919808,0.000123,2]
[349047747,1736951438062,-71324.91804548,0.000123,2]
[349047749,1736951438077,-46196.74758099,0.000123,2]
[349047751,1736951438090,-4033.80000002,0.000123,2]
[349047754,1736951438181,-3706305.41640318,0.000123,2]
[349047755,1736951438191,-219.58,0.00012329,2]
[349047756,1736951438201,-500.0,0.000126,2]
[349047757,1736951438211,-37014.61451428,0.000129,7]
[349047758,1736951438221,-1224.65860907,0.00015235,2]
[349047760,1736951438230,-1517.64,0.000153,2]
[349047762,1736951438239,-992.91,0.000153,2]
[349047764,1736951438248,-264.33,0.000153,2]
[349047766,1736951438257,-24571.13,0.000153,2]
[349047768,1736951438266,-150.99,0.000153,2]
[349047770,1736951438276,-9841.06,0.000153,2]
[349047771,1736951438286,-299.99,0.000153,2]
[349047773,1736951438297,-7346.33963514,0.000154,2]
[349047776,1736951438307,-150.69,0.000158,2]
[349047778,1736951438317,-812.17,0.000179,2]
[349047779,1736951438327,-7727.11,0.000179,2]
[349047782,1736951438337,-516.72,0.000179,2]
[349047784,1736951438350,-153.42657511,0.000179,2]
[349047786,1736951438361,-153.42657497,0.000179,2]
[349047788,1736951438373,-153.42657497,0.000179,2]
[349047789,1736951438383,-153.42657497,0.000179,2]
[349047791,1736951438392,-153.42657497,0.000179,2]
[349047793,1736951438402,-153.42657497,0.000179,2]
[349047795,1736951438412,-153.42657497,0.000179,2]
[349047797,1736951438422,-153.42657497,0.000179,2]
[349047799,1736951438431,-779.92,0.000179,2]
[349047801,1736951438442,-153.42657497,0.000179,2]
[349047803,1736951438452,-153.42657497,0.000179,2]
[349047806,1736951438462,-153.42657497,0.000179,2]
[349047808,1736951438472,-153.42657497,0.000179,2]
[349047810,1736951438482,-153.42657497,0.000179,2]
[349047811,1736951438492,-137893.75709172,0.00018,10]
[349047814,1736951438504,-29551.99247455,0.00018,3]
[349047815,1736951438513,-195997.63961663,0.000189,2]
[349047818,1736951438525,-7242.08946969,0.000189,2]
[349047820,1736951438537,-2420.14254289,0.000189,2]
[349047823,1736951438553,-16576.37628805,0.000189,2]
[349047825,1736951438563,-400.67,0.00019156,2]
[349047826,1736951438573,-151.0,0.00019566,2]
[349047828,1736951438584,-9096.40000001,0.000199,7]
[349047831,1736951438597,-1328.76558758,0.0002,60]
[349047832,1736951438607,-19026.07172078,0.0002,4]
[349047835,1736951438618,-2017.4154,0.0002,4]
[349047837,1736951438629,-496.72623,0.0002,4]
[349047839,1736951438640,-3011.54434761,0.0002,4]
[349047841,1736951438651,-29044.86104461,0.0002,2]
[349047843,1736951438663,-393.69097478,0.0002,2]
[349047987,1736951440119,-494.00743064,0.0002,2]
[349048001,1736951440248,-157.19861192,0.0002,2]
[349048003,1736951440258,-500.0,0.0002,2]
[349048005,1736951440268,-18.60524873,0.00020241,60]
[349048016,1736951440379,-2503.70959465,0.000129,2]
[349048018,1736951440389,-461.97308785,0.00020241,60]
[349048020,1736951440399,-3007.17094855,0.0002032,120]
[349048022,1736951440408,-1008.64609671,0.0002032,30]
[349048024,1736951440418,-1000.0,0.0002032,2]
[349048026,1736951440427,-905.10053744,0.0002032,3]
[349048028,1736951440436,-302.3440259,0.0002032,2]
[349048030,1736951440446,-160.0,0.00021181,2]
[349048032,1736951440456,-160.0,0.00021965,2]
[349048034,1736951440466,-1378.8090689,0.000221,2]
[349048037,1736951440477,-324.22562728,0.000221,2]
[349048039,1736951440489,-1013.72388078,0.000221,2]
[349048052,1736951440612,-1415.24142304,0.000221,2]
[349048054,1736951440621,-160.0,0.00022749,2]
[349048056,1736951440630,-403.19872732,0.00022957,2]
[349048058,1736951440642,-581.09624504,0.00022957,2]
[349048406,1736951444239,-2503.70959462,0.00014348,2]
[349048408,1736951444249,-464.45400432,0.00015797,2]
[349048410,1736951444261,-324.686543,0.00015797,2]
[349048421,1736951444367,-683.90000001,0.00015797,2]
[349048423,1736951444380,-384.8,0.00015797,2]
[349048521,1736951446088,-645.86904729,0.00015797,2]
[349048523,1736951446100,-2503.70959462,0.00017245,2]
[349048525,1736951446110,-153.42657497,0.000179,2]
[349048528,1736951446120,-618.81058921,0.00018693,2]
[349048530,1736951446131,-375.10155741,0.00018693,2]
[349048532,1736951446143,-1509.797448,0.00018693,2]
[349048534,1736951446153,-193.14,0.00019156,2]
[349048536,1736951446163,-2503.70959462,0.00020141,2]
[349048538,1736951446172,-2503.70959462,0.0002159,2]
[349048540,1736951446181,-884.96902764,0.00022957,2]
[349048541,1736951446190,-156.213,0.00022957,2]
[349048543,1736951446200,-2503.70959462,0.00023038,2]
[349048545,1736951446209,-150.0,0.00023357,30]
[349048547,1736951446219,-150.0,0.00023357,30]
[349048549,1736951446228,-150.0,0.00023357,30]
[349048551,1736951446237,-150.0,0.00023357,30]
[349048553,1736951446247,-16209.84115425,0.00023357,30]
[349048555,1736951446256,-2372.16738042,0.00023357,30]
[349048557,1736951446265,-1083.94475382,0.00023357,30]
[349048559,1736951446274,-1647.82445396,0.00023357,30]
[349048561,1736951446284,-160.0,0.00023532,2]
[349048563,1736951446293,-724.27,0.00023744,2]
[349048565,1736951446302,-52252.79839065,0.0002388,2]
[349048567,1736951446314,-68179.78185008,0.0002388,2]
[349048569,1736951446323,-779.92,0.000239,7]
[349048571,1736951446333,-14245.26314607,0.00023998,2]
[349048573,1736951446342,-176.65,0.00024283,2]
[349048575,1736951446353,-781.77,0.00024283,2]
[349048577,1736951446364,-160.0,0.00024316,2]
[349048579,1736951446376,-2503.70959462,0.00024486,2]
[349048581,1736951446386,-1118.32341774,0.00024534,2]
[349048583,1736951446395,-1000.0,0.00024658,2]
[349048585,1736951446404,-2503.70959462,0.00025934,2]
[349048587,1736951446415,-247.38,0.00026198,2]
[349048589,1736951446424,-200.0,0.00026453,2]
[349048591,1736951446434,-150.0,0.00026618,2]
[349048593,1736951446443,-500.0,0.00026849,7]
[349048595,1736951446452,-690.57877818,0.00027,3]
[349048597,1736951446462,-198.70845755,0.000272,44]
[349048599,1736951446471,-781.77,0.00027319,2]
[349048601,1736951446480,-151.0,0.0002733,2]
[349048603,1736951446490,-2503.70959462,0.00027383,2]
[349048605,1736951446499,-618.55976069,0.0002757,2]
[349048607,1736951446508,-121208.0599353,0.000278,30]
[349048609,1736951446520,-565.36121811,0.000278,30]
[349048612,1736951446532,-88478.01928117,0.000278,30]
[349048614,1736951446543,-300.0,0.000279,10]
[349048616,1736951446553,-247.38,0.00028462,2]
[349048618,1736951446562,-503.37,0.00028508,120]
[349048620,1736951446572,-200.0,0.00028553,2]
[349048622,1736951446582,-779.92,0.000286,7]
[349048624,1736951446591,-2503.70959462,0.00028831,2]
[349048626,1736951446603,-150.0,0.000298,2]
[349048628,1736951446612,-23900.0,0.000301,2]
[349048630,1736951446622,-10785.31115087,0.00030187,3]
[349048632,1736951446631,-2503.70959462,0.00030279,2]
[349048634,1736951446641,-781.77,0.00030354,2]
[349048636,1736951446651,-250.0,0.00030434,2]
[349048637,1736951446660,-500.0,0.00030711,120]
[349048639,1736951446670,-247.38,0.00030726,2]
[349048641,1736951446681,-250.0,0.000308,30]
[349048644,1736951446691,-226.08289361,0.00031065,2]
[349048646,1736951446700,-2744.25102262,0.00031065,2]
[349048648,1736951446710,-150.0,0.00031169,2]
[349048650,1736951446720,-1500.0,0.00031613,2]
[349048651,1736951446730,-2503.70959462,0.00031728,2]
[349048653,1736951446739,-503.37,0.00032071,120]
[349048656,1736951446749,-500.0,0.00032493,2]
[349048658,1736951446758,-247.38,0.0003299,2]
[349048659,1736951446768,-2503.70959462,0.00033176,2]
[349048662,1736951446778,-724.27,0.00033242,2]
[349048664,1736951446788,-781.77,0.00033389,2]
[349048666,1736951446797,-176.64,0.00033777,2]
[349048667,1736951446807,-779.92,0.000341,14]
[349048669,1736951446816,-2503.70959462,0.00034624,2]
[349048671,1736951446825,-1019.999999,0.00035,2]
[349048674,1736951446835,-247.38,0.00035254,2]
[349048675,1736951446844,-503.37,0.00035635,120]
[349048678,1736951446857,-100000.0,0.00036,26]
[349048680,1736951446867,-166.31,0.00036332,2]
[349048682,1736951446877,-200.0,0.000364,2]
[349048684,1736951446887,-781.77,0.00036425,2]
[349048686,1736951446897,-176.65,0.00036425,2]
[349048688,1736951446907,-1681.66104772,0.000368,60]
[349048690,1736951446917,-5000.0,0.000369,2]
[349048692,1736951446926,-500.0,0.00036964,60]
[349048694,1736951446935,-500.0,0.00036964,60]
[349048696,1736951446946,-500.0,0.00036964,60]
[349048698,1736951446956,-37084.85568814,0.00037,27]
[349048700,1736951446967,-3253.2053238,0.00037,27]
[349048704,1736951446994,-1120.07727721,0.00037,27]
[349048706,1736951447005,-19916.04697909,0.00037,27]
[349048709,1736951447019,-2503.70959462,0.00036072,2]
[349048711,1736951447029,-3781.47040538,0.00037,27]
[349048713,1736951447040,-382.29367614,0.00037,27]
[349048714,1736951447051,-539.2883703,0.00037,27]
[349048715,1736951447062,-4669.22596812,0.00037,27]
[349048716,1736951447088,-29253.53631182,0.00037,27]
[349048717,1736951447099,-247.38,0.00037518,2]
[349048719,1736951447111,-192.0,0.00037522,5]
[349048721,1736951447121,-700.0,0.000379,13]
[349048723,1736951447130,-24073.58368818,0.00038,28]
[349049965,1736952079360,150.0,0.000235,120]
[349049966,1736952388760,-234.636,8.767e-05,3]
[349049992,1736952632416,-191.36,0.00010137,2]
[349049993,1736952632426,-186.05,0.00012329,2]
[349049994,1736952632436,-247.57,0.00016665,2]
[349049995,1736952632448,-175.88,0.00016712,2]
[349049996,1736952632458,-185.37,0.00018,2]
[349049997,1736952632467,-177.685201,0.00018946,2]
[349049998,1736952632476,-300.0,0.0002097,2]
[349049999,1736952632486,-429.0,0.00021123,2]
[349050000,1736952632496,-556.11,0.000214,7]
[349050001,1736952632506,-501.0,0.00022027,2]
[349050002,1736952632515,-150.0,0.00022199,2]
[349050003,1736952632525,-150.99,0.00022199,2]
[349050004,1736952632534,-999.99,0.00022199,2]
[349050005,1736952632543,-1425.0,0.000222,14]
[349050006,1736952632553,-1162.81,0.000222,2]
[349050007,1736952632562,-29999.99,0.000222,2]
[349050008,1736952632571,-7651.39866351,0.000222,2]
[349050009,1736952632583,-2348.59133649,0.000222,2]
[349050010,1736952632593,-3187.8,0.000222,2]
[349050011,1736952632602,-568.73,0.000222,2]
[349050012,1736952632611,-84451.2421,0.00023157,2]
[349050013,1736952632620,-150.0,0.00023357,30]
[349050014,1736952632629,-150.0,0.00023357,30]
[349050015,1736952632639,-150.0,0.00023357,30]